Cogmind - Beta 14 @@@ ROGUE MODE // 2024.10.16 @ 13:20:45 Player: Tereza Result: Self-destructed Performance ------------- Evolutions (2) 1000 Regions Visited (3) 600 Robots Destroyed (33) 165 Value Destroyed (980) 980 Prototype IDs (1) 20 Alien Tech Used (0) 0 Bonus (200) 200 TOTAL SCORE: 2965 Bonus ------- Pacifist 200 Cogmind --------- Core Integrity 425/550 Matter 270/300 Energy 160/160 System Corruption 0% Temperature Cool (0) Movement Walking (120) Location -8/Materials Parts ------- > --- POWER (1) -------- Light Nuclear Core > --- PROPULSION (3) --- Aluminum Leg Aluminum Leg Improved Aluminum Leg > --- UTILITY (5) ------ Medium Storage Unit Sensor Array Signal Interpreter Improved Light Armor Plating Hacking Suite > --- WEAPON (2) ------- Heavy Assault Rifle Light Cannon > --- INVENTORY (10) --- Improved Ion Engine Aluminum Leg Sensor Array Hardened Light Armor Plating Heavy Assault Rifle Rocket Launcher Peak State ------------ > --- POWER ------------ Light Nuclear Core > --- PROPULSION ------- Aluminum Leg Aluminum Leg Improved Aluminum Leg > --- UTILITY ---------- Small Storage Unit Sensor Array Signal Interpreter Improved Light Armor Plating Hacking Suite > --- WEAPON ----------- Heavy Assault Rifle Improved Light Cannon > --- INVENTORY -------- Improved Ion Engine Aluminum Leg Aluminum Leg Sensor Array Hardened Light Armor Plating Light Cannon Light Cannon Mining Laser [Rating: 21] Favorites ----------- Power Light Ion Engine Engine Light Ion Engine Power Core Light Nuclear Core Propulsion Aluminum Leg Treads Light Treads Leg Aluminum Leg Utility Sensor Array Device Sensor Array Storage Small Storage Unit Processor Signal Interpreter Hackware Hacking Suite Protection Hardened Light Armor Plating Weapon Improved Light Cannon Ballistic Gun Improved Assault Rifle Ballistic Cannon Improved Light Cannon Special Weapon Mining Laser Build | -11 -10 -9 -8 ------- Run | Yrd Mat Mat Mat Slots Evolved 4 | . . 2 2 Power . | . . . . Propulsion 1 | . . . 1 Utility 3 | . . 2 1 Weapon . | . . . . Parts Attached 34 | 6 2 13 13 Power 2 | 1 . 1 . Engine 1 | 1 . . . Core 1 | . . 1 . Reactor . | . . . . Propulsion 11 | 2 . 4 5 Treads 2 | 2 . . . Leg 9 | . . 4 5 Wheel . | . . . . Hover . | . . . . Flight . | . . . . Utility 12 | 1 1 5 5 Device 3 | . 1 1 1 Storage 2 | 1 . . 1 Processor 1 | . . . 1 Hackware 1 | . . 1 . Protection 5 | . . 3 2 Artifact . | . . . . Weapon 9 | 2 1 3 3 Energy Gun . | . . . . Energy Cannon . | . . . . Ballistic Gun 6 | 2 . 2 2 Ballistic Cannon 2 | . . 1 1 Launcher . | . . . . Special Weapon 1 | . 1 . . Impact Weapon . | . . . . Slashing Weapon . | . . . . Piercing Weapon . | . . . . Special Melee Weapon . | . . . . Unidentified Prototypes 1 | . . 1 . Parts Lost 2 | . . . 2 Power . | . . . . Propulsion . | . . . . Utility 1 | . . . 1 Weapon 1 | . . . 1 Highest Loss Streak 2 | . . . 2 To Critical Strikes . | . . . . Average Slot Usage (%) 97 | . 99 97 97 Engine 6 | . 14 8 . Core 4 | . . 2 9 Treads 3 | . 28 . . Leg 20 | . . 21 26 Device 11 | . 13 11 12 Storage 9 | . 14 11 4 Processor 2 | . . . 8 Hackware 7 | . . 9 9 Protection 8 | . . 10 8 Ballistic Gun 12 | . 26 11 8 Ballistic Cannon 8 | . . 10 9 Peak Build Rating 21 | 6 7 18 21 Average Rating 15 | 4 6 14 19 On Entrance 7 | . 6 7 17 Naked Turns . | . . . . Heaviest Build 25 | 12 13 23 25 Greatest Support 40 | 40 40 40 33 Greatest Overweight (x) 1 | . . 1 . Average Overweight (x) . | . . . . Largest Inventory Capacity 10 | 8 8 8 10 Average Capacity 7 | 6 8 8 7 Most Carried 8 | 6 8 8 8 Average Carried 7 | 4 7 7 5 Final Capacity 10 | 8 8 8 10 Final Carried 8 | 6 8 8 6 Class Distribution -------------------- 65% | Mutant 34% | Scavenger-Mutant Dominant Class ---------------- Mutant | -10/Materials Mutant | -9/Materials Scavenger-Mutant | -8/Materials Resources | -11 -10 -9 -8 ----------- Run | Yrd Mat Mat Mat Matter Collected 1144 | 223 . 579 342 Remotely . | . . . . Salvage Created 1110 | . . 560 550 Parts 75 | . . 52 23 Haulers Intercepted 1 | . . . 1 Recyclers Shooed 1 | . . 1 . Parts Field Recycled . | . . . . Retrieved Matter . | . . . . Parts Self-Destructed . | . . . . Prevented . | . . . . Kills | -11 -10 -9 -8 ------- Run | Yrd Mat Mat Mat Combat Hostiles Destroyed 25 | . . 17 8 Guns 9 | . . 6 3 Cannons 16 | . . 11 5 Classes Destroyed 9 | . . 6 3 Builder 1 | . . . 1 Hauler 1 | . . . 1 Recycler 2 | . . . 2 Operator 1 | . . 1 . Watcher 3 | . . 3 . Swarmer 6 | . . 6 . Grunt 13 | . . 6 7 Brawler 1 | . . 1 . Sentry 5 | . . 4 1 Best Kill Streak 5 | . . 5 4 Combat Bots Only 5 | . . 5 2 Max Kills in Single Turn 2 | . . 1 2 Gunslinging . | . . . . Exploded . | . . . . Melee . | . . . . Uniques/NPCs Destroyed . | . . . . Combat | -11 -10 -9 -8 -------- Run | Yrd Mat Mat Mat Hostile Shots Fired 150 | . . 88 62 Missed 50 | . . 26 24 Damage Taken 1389 | . 44 641 704 Core 195 | . 14 56 125 Absorbed by Shields . | . . . . Core Remaining (%) 93 | 100 94 86 . Volleys Fired 95 | . 6 53 36 Largest 2 | . 2 2 2 Hottest 120 | . 120 120 62 Shots Fired 185 | . 9 104 72 Gun 97 | . 8 53 36 Cannon 86 | . . 50 36 Launcher . | . . . . Special 2 | . 1 1 . Kinetic 183 | . 8 103 72 Thermal 2 | . 1 1 . Explosive . | . . . . Electromagnetic . | . . . . Robot Hit Streak 6 | . 1 6 5 Robot Miss Streak 4 | . 2 4 3 Penetration Max . | . . . . Secondary Targets . | . . . . Shots Hit Robots 96 | . 1 59 36 Core Hits 46 | . . 28 18 Critical Kills . | . . . . Critical Parts Destroyed . | . . . . Critical Strikes 1 | . . . 1 Blast 1 | . . . 1 Melee Attacks . | . . . . Impact . | . . . . Slashing . | . . . . Piercing . | . . . . Sneak Attacks . | . . . . Combat Hostiles . | . . . . Follow-up Attacks . | . . . . Damage Inflicted 1978 | . 11 1136 831 Guns 834 | . 11 504 319 Cannons 961 | . . 632 329 Explosions 183 | . . . 183 Melee . | . . . . Ramming . | . . . . Kinetic 1795 | . 11 1136 648 Thermal 183 | . . . 183 Explosive . | . . . . Electromagnetic . | . . . . Impact . | . . . . Slashing . | . . . . Piercing . | . . . . Highest Corruption 1 | . . 1 . Average Corruption 1 | . . 1 . Corruption Purged . | . . . . Corruption Blocked . | . . . . Effects 6 | . . 6 . Message Errors 3 | . . 3 . Matter Fused 1 | . . 1 . Heat Flow Errors 1 | . . 1 . Energy Discharges 1 | . . 1 . Overload Shots . | . . . . Overflow Damage 88 | . . 5 83 Projectiles 5 | . . 5 . Explosions 83 | . . . 83 Melee . | . . . . Knockbacks 10 | . . 7 3 Impact . | . . . . Kinetic 10 | . . 7 3 Secondary . | . . . . Self-Inflicted Damage 113 | . . . 113 Shots 1 | . . . 1 Rammed . | . . . . Targets Rammed . | . . . . Kicked . | . . . . Crushed . | . . . . Highest Temperature 192 | . 20 192 55 Average Temperature 37 | . 10 42 19 Received Heat Transfer 513 | . . 171 342 Siege Activations . | . . . . Robots Corrupted . | . . . . Combat Hostiles . | . . . . Parts Fried . | . . . . Impact Corruptions . | . . . . Robots Melted . | . . . . Combat Hostiles . | . . . . Parts Melted 1 | . . . 1 Heat Transferred 100 | . . . 100 Parts Sabotaged . | . . . . Parts Stolen . | . . . . Parts Stripped . | . . . . Power Chain Reactions . | . . . . Alert | -11 -10 -9 -8 ------- Run | Yrd Mat Mat Mat Peak Influence 340 | . 21 340 301 Initial 143 | . . 8 143 Average 128 | . 10 136 173 Maximum Alert Level 1 | . . 1 1 Low Security (%) 76 | 100 100 71 74 Level 1 23 | . . 28 25 Level 2 . | . . . . Level 3 . | . . . . Level 4 . | . . . . Level 5 . | . . . . High Security . | . . . . Max Security . | . . . . Squads Dispatched 1 | . . . 1 Investigation 1 | . . . 1 Extermination . | . . . . Reinforcement . | . . . . Assault . | . . . . Garrison . | . . . . Intercept . | . . . . Searches Triggered . | . . . . Construction Impeded . | . . . . Haulers Reinforced . | . . . . Active Scanning Responses . | . . . . Cargo Convoy Interrupts . | . . . . Stealth | -11 -10 -9 -8 --------- Run | Yrd Mat Mat Mat Distress Signals 1 | . . 1 . Communications Jammed . | . . . . Distress Signals . | . . . . Times Spotted 37 | . 2 25 10 Peak Tracking Total 6 | . 1 6 4 Tactical Retreats . | . . . . Traps | -11 -10 -9 -8 ------- Run | Yrd Mat Mat Mat Traps Triggered 4 | . 1 1 2 Indirectly . | . . . . Trap Hack Attempts . | . . . . Triggered . | . . . . Disarmed . | . . . . Reprogrammed . | . . . . Reused . | . . . . Traps Extracted . | . . . . Installed . | . . . . Triggered . | . . . . Machines | -11 -10 -9 -8 ---------- Run | Yrd Mat Mat Mat Machines Disabled 3 | . . 2 1 Max in Single Turn 1 | . . 1 1 Machines Repaired . | . . . . Machines Dismantled . | . . . . Machines Sabotaged . | . . . . Overloaded Fab Kills . | . . . . Hacking | -11 -10 -9 -8 --------- Run | Yrd Mat Mat Mat Machines Accessed 5 | . 2 1 2 Terminals 5 | . 2 1 2 Fabricators . | . . . . Repair Stations . | . . . . Recycling Units . | . . . . Scanalyzers . | . . . . Garrison Access . | . . . . Total Hacks 11 | . 5 1 5 Successful 5 | . 4 1 . Failed 6 | . 1 . 5 Catastrophic 1 | . . . 1 Database Lockouts . | . . . . Manual 4 | . 2 1 1 Terminals 11 | . 5 1 5 Fabricators . | . . . . Repair Stations . | . . . . Recycling Units . | . . . . Scanalyzers . | . . . . Garrison Access . | . . . . Terminal Hacks 2 | . 2 . . Hauler Manifests 1 | . 1 . . Zone Layout 1 | . 1 . . Fabricator Hacks . | . . . . Repair Station Hacks . | . . . . Recycling Unit Hacks . | . . . . Scanalyzer . | . . . . Garrison Access Hacks . | . . . . Unauthorized Hacks 3 | . 2 1 . Terminals 3 | . 2 1 . Botnet 3 | . 2 1 . Fabricators . | . . . . Repair Stations . | . . . . Recycling Units . | . . . . Scanalyzers . | . . . . Garrison Access . | . . . . Data Cores Recovered . | . . . . Used . | . . . . Hacking Detections 5 | . 2 1 2 Full Trace Events 1 | . 1 . . Feedback Events . | . . . . Feedback Blocked . | . . . . Robot Schematics Acquired . | . . . . Robots Built . | . . . . Authchips . | . . . . Time . | . . . . Total Robot Build Rating . | . . . . Part Schematics Acquired . | . . . . Parts Built . | . . . . Authchips . | . . . . Time . | . . . . Total Part Build Rating . | . . . . Parts Repaired . | . . . . Time . | . . . . Parts Recycled . | . . . . Recycled Matter . | . . . . Retrieved Matter . | . . . . Retrieved Components . | . . . . Parts Scanalyzed . | . . . . Part Schematics Acquired . | . . . . Parts Damaged . | . . . . Bothacking | -11 -10 -9 -8 ------------ Run | Yrd Mat Mat Mat Used RIF Installer . | . . . . Robots Hacked . | . . . . Non-combat . | . . . . Combat . | . . . . Robot Hacks Applied . | . . . . Relay Couplers Released . | . . . . Fabnet Peak Effective % . | . . . . Robots Rewired . | . . . . Allies Hacked . | . . . . Hacks Repelled . | . . . . Allies | -11 -10 -9 -8 -------- Run | Yrd Mat Mat Mat Total Allies . | . . . . Largest Group . | . . . . Highest-Rated Group . | . . . . Highest-Rated Ally . | . . . . Total Orders . | . . . . Ally Attacks . | . . . . Total Damage . | . . . . Kills . | . . . . Allies Corrupted . | . . . . Allies Melted . | . . . . Intel | -11 -10 -9 -8 ------- Run | Yrd Mat Mat Mat Robot Analysis Total . | . . . . Derelict Logs Recovered . | . . . . Drone Launches . | . . . . Drone Recoveries . | . . . . Exploration | -11 -10 -9 -8 ------------- Run | Yrd Mat Mat Mat Turns Passed 2046 | 81 238 1066 661 Spaces Moved 1060 | 44 117 516 383 Core 3 | 3 . . . Treads 165 | 41 117 7 . Legs 892 | . . 509 383 Wheels . | . . . . Hover . | . . . . Flight . | . . . . Fastest Speed 50 | 50 160 120 120 Average Speed 145 | 152 160 160 120 Slowest Speed 190 | 160 160 190 120 Overloaded Moves . | . . . . Propulsion Burnouts . | . . . . Robots Hopped . | . . . . Cave-ins Triggered . | . . . . Exploration Rate (%) 26 | 5 26 42 33 Regions Visited 3 Branch Regions . Pre-discovered Areas . | . . . . Known Exits Taken . | . . . . Unknown Exits Taken 3 | 1 1 1 . Scrap Searched . | . . . . Spaces Dug 1 | . 1 . . Terrain Destroyed 43 | . 1 6 36 Melee . | . . . . Projectile 7 | . 1 6 . AOE 36 | . . . 36 Terrain Rammed . | . . . . Walls Destroyed . | . . . . Machines Disabled . | . . . . Actions | -11 -10 -9 -8 --------- Run | Yrd Mat Mat Mat Total 1376 | 55 156 655 510 Wait 146 | . 30 43 73 Move 1057 | 43 116 515 383 Hop . | . . . . Pick Up 20 | 6 2 11 1 Fast Attach 18 | 6 1 6 5 Attach 5 | . . 2 3 Detach 1 | . . 1 . Swap 11 | . 1 5 5 Drop 23 | . . 19 4 Fire 95 | . 6 53 36 Melee . | . . . . Ram . | . . . . Kick . | . . . . Crush . | . . . . Escape Stasis . | . . . . Rewire . | . . . . Trap . | . . . . Miscellaneous . | . . . . Route ------- -11/Scrapyard -10/Materials (discovered 2 exits: *Mat x2) -9/Materials -8/Materials History --------- Turn | Location | Event 11 | -11/Scrapyard | Discovered new exit (range 15) 82 | -11/Scrapyard | Entered Materials 273 | -10/Materials | Discovered new exit (range 10) 273 | -10/Materials | Discovered new exit (range 21) 311 | -10/Materials | Build established: Mutant 320 | -10/Materials | Entered another Materials area 320 | -9/Materials | Evolved 2 slots: Utility x2 1368 | -9/Materials | Discovered new exit (range 12) 1386 | -9/Materials | Entered another Materials area 1386 | -8/Materials | Evolved 2 slots: Propulsion x1, Utility x1 1661 | -8/Materials | Build established: Scavenger-Mutant 2047 | -8/Materials | Self-destructed Last Messages --------------- Dropped Imp. Heat Sink. Acquired Med. Storage Unit. G-47 Trooper knocked back. G-47 Trooper destroyed. Acquired 45 matter. Y-45 Defender destroyed. Acquired 28 matter. Acquired 10 matter. Triggered Blade Trap. Massive razor-sharp blades shoot up from within the floor. Aluminum Leg severed. Hvy. Assault Rifle severed. Imp. Light Armor Plating severed. Acquired Aluminum Leg. Acquired Hvy. Assault Rifle. U-05 Engineer lays Concrete. Acquired Imp. Light Armor Plating. Critical hit (Burn: +37). U-05 Engineer builds a Door. Map ----- +----------------------------------------------------+ | | | | | | | | | | | | | | | | | | | | | | | | | | | | | | | | | | | | | | | | | | | | | | | ??????????????????????????????????????????###????? | | ????????????????????????#############????# ????? | | ????????????????????????#@ #????# ????# | | ????????????????????????# !#????# = ????# | | ????????????????????????# ###### ????# | | ????????????????????????# # ##+###### | | ????????????????????????# + ^ | | ????????????????????????# # = | | ????????????????????????# # ##### " | | ????????????????????????############## ###???# "T | | ?????????????????????????????????????#+#?????# "" | | ????????????????????????????????????? ?????# | | ????????????????????????????????????? ?????# % | | ???????????????????????????????????? ???## "" | | ???????????????????????????????????? ???+ "" | | ??????????????????????????????????? """ ""??# "" | | ??????????????????????????????????? """ ""??# | | ??????????????????????????????????# """ """?# % | | ??????????????????????????????????# ??# | | ??????????????????????????################### | | ????????????????????????#= + % | | ????????????????????????# """"" #########+##+#### | | ???????????????????????????""""????????# % #? | | ????????????????????????????"??????????# #? | | ???????????????????????????????????????# | % #? | | ???????????????????????????????????????# #? | | ???????????????????????????????????????# #? | +----------------------------------------------------+ Best States ------------- Heat Dissipation 45 Energy Generation 14 Energy Capacity 160 Matter Stores 300 Matter Capacity 300 Sight Range 16 Robot Scan Range 14 Terrain Scan Density 10 Armor Coverage 150 Power Shielding 33 Evasion (%) 55 Recoil Reduction 2 Offensive Hacking 10 Item Schematics ----------------- None Robot Schematics ------------------ None Fabricated ------------ Nothing Alien Tech Used ----------------- None Achievements -------------- None Challenges ------------ None Game ------ Seed ServoBlastCarapace Manual? 0 Play Time 00:14:57 Cumulative 74.3 hours Start 2024.10.16 @ 12:49:02 End 2024.10.16 @ 13:20:45 Sessions 1 Manual Loads 0 Difficulty Rogue Special Mode None Game No. 88 Rogue 88 Adventurer 0 Explorer 0 Win Type - Total 0 Types 0/0/0/0/0/0/0/0/0 Lore% 51 Gallery% 43 Achievement% 36 Wizard Run 0 Options --------- Layout 1 ASCII 0 Keyboard 1 Movement Numpad Keybinds 0 Fullscreen 1 Font 24/Smallcaps Map View 50x35 Zoom Use 0% Tactical HUD 0 Map Filters NONE Filters NONE Steam 1 RUN: c0089744-82d2-420b-af18-9cff5701b40b